Workbook

Sheet PR
A1: NOM
A2: TIPUS CONTRACTE
A3: DEDICACIÓ | B3: 37.5 | C3: =IF(ValLAB!J20=2,"Posar dedicació 37,5 hores",IF(ValLAB!J20=3,"Posar dedicació a temps parcial","TP: posar les hores setmanals de dedicació / TC: posar 37,5 hores")) -> TP: posar les hores setmanals de dedicació / TC: posar 37,5 hores
A4: INICI VINCULACIÓ | B4: 2025-01-01
A5: INICI CONTRACTE/PRORROGA | B5: 2025-01-01 | C5: FI CONTRACTE | D5: 2025-12-31
A6: CATEGORIA | B6: 1900-01-03 | C6: Nº TRIENNIS
A8: Nº Dies RD | B8: 20 | D8: =(D6*ValLAB!B8)*(B3/37.5) -> 0
A9: COST MENSUAL
A10: Retribucions: | B10: =SUM(B11:B14) -> 2666.7
A11: Sou | B11: =(ValLAB!K16)*B3/37.5 -> 1474.19
A12: Comp.Lloc de treball | B12: =(ValLAB!L16)*B3/37.5 -> 196.97
A13: Complement categoria | B13: =(ValLAB!M16)*B3/37.5 -> 986.96
A14: Acord mesa universitària | B14: =(ValLAB!N16)*B3/37.5 -> 8.58
A16: Prorrata mensual extres | B16: =ValLAB!O16*2/12*B3/37.5 -> 443.02
A17: Prorrata mensual triennis extres | B17: =D8*2/12 -> 0
A18: TOTAL PRORRATA | B18: =SUM(B16:B17) -> 443.02
A20: Triennis: | B20: =SUM(D8) -> 0
A22: TOTAL RETRIBUCIONS | B22: =SUM(B10+B18+B20) -> 3109.72
A23: Indemnització RD
A24: Quota patronal | B24: =IF(B22>4139.4,ValLAB!L20*4139.4,B22*ValLAB!L20) -> 999.77498
A25: TOTAL COST | B25: =SUM(B22:B24) -> 4109.49498
A28: COST PERIODE DEMANAT | B28: =CONCATENATE(B1," (",DAY(B5),"/",MONTH(B5),"/",YEAR(B5),"-",DAY(D5),"/",MONTH(D5),"/",YEAR(D5),")") -> (1/1/2025-31/12/2025)
B30: ACTUAL
A31: Retribucions: | B31: =IF(B10=0,0,B10*(D49+(E49/30))) -> 32000.4 | C31: PERIODE DEMANAT
A33: TOTAL EXTRES: | B33: =SUM(B34:B35) -> 5316.24 | C33: nº mesos | D33: =D49 -> 12
A34: Extra juny | B34: =IF(B18=0," ",B18/2*(D49+(E49/30))) -> 2658.12 | C34: nº dies | D34: =E49 -> 0
A35: Extra desembre | B35: =IF(B18=0," ",(B18/2)*(D49+E49/30)) -> 2658.12
A37: Triennis: | B37: =IF(B20=0,0,B20*(D49+E49/30)) -> 0
A39: TOTAL RETRIB. | B39: =IF(B31=0,0,SUM(B31+B33+B37)) -> 37316.64
A40: Indemnització RD
A41: Quota patronal | B41: =IF(B22>4139.4,B24*(D49+(E49/30)),B39*ValLAB!L20) -> 11997.29976
A42: TOTAL COST | B42: =SUM(B39:B41) -> 49313.93976
A46: MERITACIÓ ARROSEGAMENT PAGUES
B47: DATA INICI | C47: DATA FI | D47: Nº MESOS | E47: Nº DIES
A48: TOTAL VINCULACIÓ | B48: =IF(B4=0," ",B4) -> 2025-01-01 | C48: =IF(D5=0," ",D5) -> 2025-12-31 | D48: =IF((C48-B48)>0,'calcul dies'!L5,"ERROR DATES") -> 12 | E48: =IF((C48-B48)>0,'calcul dies'!N5," ") -> 0
A49: PRORROGA | B49: =IF(B5=0," ",B5) -> 2025-01-01 | C49: =IF(D5=0," ",D5) -> 2025-12-31 | D49: =IF((C48-B48)>0,'calcul dies'!L10,"ERROR DATES") -> 12 | E49: =IF((C48-B48)>0,'calcul dies'!N10," ") -> 0
A50: MERITEN | C50: DATA FI | D50: NºMESOS | E50: Nº DIES
A51: de 01/07 a 30/06 | C51: =IF(G5=0," ",(G5)-1) ->  | D51: =IF(B51=0,0,IF((C51-B51)>366,"ERROR DATA",IF((C51-B51)>0,'[2]calcul dies'!L15,"ERR0R DATA "))) -> 0 | E51: =IF(B51=0,0,IF((C51-B51)>366," ",IF((C51-B51)>0,'[2]calcul dies'!N15," "))) -> 0
A52: de 01/01 a 31/12 | C52: =IF(G5=0," ",(G5)-1) ->  | D52: =IF(B52=0,0,IF((C52-B52)>366,"ERROR DATA",IF((C52-B52)>0,'[2]calcul dies'!L20,"ERR0R DATA "))) -> 0 | E52: =IF(B52=0,0,IF((C52-B52)>366," ",IF((C52-B52)>0,'[2]calcul dies'!N20," "))) -> 0
A53: Indemnització RD | C53: =IF(G5=0," ",(G5)-1) ->  | D53: =IF(B53=0,0,IF((C53-B53)>366,"ERROR DATA",IF((C53-B53)>0,'[2]calcul dies'!#REF!,"ERR0R DATA "))) -> 0 | E53: =IF(B53=0,0,IF((C53-B53)>366,"ERROR DATA",IF((C53-B53)>0,'[2]calcul dies'!#REF!," "))) -> 0
A54: Període treballat al 2014 | C54: =IF(YEAR(G5)>2014,DATE(2014,12,31),IF(G5<>0,G5," ")) ->  | D54: =IF(B54=0,0,IF((C54-B54)>366,"ERROR DATA",IF((C54-B54)>0,'[2]calcul dies'!#REF!,"ERR0R DATA "))) -> 0 | E54: =IF(B54=0,0,IF((C54-B54)>366,"ERROR DATA",IF((C54-B54)>0,'[2]calcul dies'!#REF!," "))) -> 0

Sheet ValLAB (hidden)
A2: Grups | B2: Sou mes | C2: comp.lloc | D2: comp.cat | E2: ACORD MESA | G2: Centre Liquidació | H2: Valor Seg_ Social | I2: Reduccions | K2: Tipus de contractes | L2: Centre Liq. | M2: % QP | N2: % RETRIB. | O2: Indemnització | R2: Finançament | T2: Conceptes
A3: Postdoctoral | B3: 1474.19 | C3: 196.97 | D3: 101.02 | E3: 8.58 | G3: 005-A | I3: 1 | K3: LABORAL INDEFINIT | L3: 006-A | M3: 0.3215 | N3: 1 | O3: no | R3: Capítol 1 | S3: 1 | T3: Substitució per alliberament sindical | U3: 1 | V3: Persona a substituir categoria, dedicació i periode d'àbsència
A4: Ordinari | B4: 1474.19 | C4: 196.97 | D4: 986.96 | E4: 8.58 | G4: 006-A | I4: 0.75 | K4: TEMPORAL VINCULAT A PROGRAMES FINANÇATS PER FONS EUROPEUS TC (37,5h) | L4: 007-A | M4: 0.3335 | N4: 1 | O4: si | R4: Fin. Específic | S4: 2 | T4: Substitució per IT | U4: 2 | V4: Persona substituta, categoria i dedicació
A5: Director | B5: 1474.19 | C5: 196.97 | D5: 1479.16 | E5: 8.58 | G5: 007-A | I5: 0.6 | K5: TEMPORAL VINCULAT A PROGRAMES FINANÇATS PER FONS EUROPEUS TP (<37,5h) | M5: 0.3335 | N5: 1 | O5: si | R5: Cofinançament | S5: 3 | T5: Reforç | U5: 3 | V5: Grup i complements
G6: 005-D | T6: Gratificació | U6: 4 | V6: Import /mes
G7: 006-D | T7: Hores extres / Serveis Extraordinàris | U7: 5 | V7: Nombre d'hores
A8: Import triennis | B8: 56.72 | G8: 007-D | T8: Altres (de FDP) | U8: 6 | V8: Tipus
G9: 005-80 | S9: Contractació contra plaça autoritzada | T9: 7
G10: 006-80 | S10: Resolució concurs | T10: 8
G11: 007-80 | S11: Altres (d'apunt) | T11: 9
G12: 001-A | S12: Actuació transversal | T12: 10 | U12: Acció transversal concreta:
G13: 002-A | S13: Actuació general | T13: 11 | U13: Tipus + Clau retributiva afectada
A14: retribucions actualitzades amb l'increment febrer 2026 | J14: Retribucions
F15: Base max. Cotització 2025 | H15: 5101.2 | J15: Grup | K15: Sou | L15: Millora | M15: Hora | N15: Acord mesa | O15: per pagues
J16: 2 | K16: =CHOOSE(J16,B3,B4,B5) -> 1474.19 | L16: =CHOOSE(J16,C3,C4,C5) -> 196.97 | M16: =CHOOSE(J16,D3,D4,D5) -> 986.96 | N16: =CHOOSE(J16,E3,E4,E5) -> 8.58 | O16: =SUM(K16:M16) -> 2658.12
J17: CLT
J18: 29 | K18: =INDEX(G3:G32,J18) -> 0
J19: Centre de Liquidació-Epígraf | L19: % corresponent
J20: 1 | K20: =INDEX(L3:L8,J20) -> 006-A | L20: =INDEX(M3:M8,J20) -> 0.3215
A26: 2021
A27: CATEGORIA | B27: DEDICACIÓ | C27: SOU BASE | D27: COMPL. DE CATEGORIA | E27: COMPL. DE LLOC | F27: ACORD MESA UNIVERSITATS | G27: TRIENNI MENSUAL
A28: Investigador posdoc | B28: TC | C28: 1290.49 | D28: 172.42 | E28: 88.42 | F28: 7.47
A29: Investigador ordinari/a | B29: TC | C29: 1290.49 | D29: 172.42 | E29: 863.98 | F29: 7.47 | G29: 49.64
A30: Director/a de investigació | B30: TC | C30: 1290.49 | D30: 172.42 | E30: 1294.85 | F30: 7.47 | G30: 49.64
A32: 2022
A33: Investigador posdoc | B33: TC | C33: 1316.3 | D33: 175.87 | E33: 90.19 | F33: 7.62
A34: Investigador ordinari/a | B34: TC | C34: 1316.3 | D34: 175.87 | E34: 881.26 | F34: 7.62 | G34: 50.64
A35: Director/a de investigació | B35: TC | C35: 1316.3 | D35: 175.87 | E35: 1320.75 | F35: 7.62 | G35: 50.64
A37: 2022-11-01
A38: Investigador posdoc | B38: TC | C38: 1335.66 | D38: 178.46 | E38: 91.52 | F38: 7.74 | G38: 51.39
A39: Investigador ordinari/a | B39: TC | C39: 1335.66 | D39: 178.46 | E39: 894.22 | F39: 7.74 | G39: 51.39
A40: Director/a de investigació | B40: TC | C40: 1335.66 | D40: 178.46 | E40: 1340.18 | F40: 7.74 | G40: 51.39

Sheet calcul dies (hidden)
A1: CALCULS DIES LABORALS NO TOPATS
A3: dies pr | E3: CÀLCUL DIES pr
B4: DATA INICI | C4: DATA FI | F4: DIA | G4: MES | H4: ANY | J4: dif mesos | K4: dif dies | L4: total mesos | M4: dies | N4: total dies
A5: TOTAL VINCULACIÓ | B5: =PR!B48 -> 2025-01-01 | C5: =PR!D5 -> 2025-12-31 | E5: INICI VINCULACIÓ | F5: =DAY(B5) -> 1 | G5: =MONTH(B5) -> 1 | H5: =YEAR(B5) -> 2025 | J5: =IF(F5>1,-1,0) -> 0 | K5: =IF(F5=1,-M5,0) -> -31 | L5: =IF(H5=H6,G6-G5+1,13-G5+G6+(H6-H5-1)*12)+J5+J6 -> 12 | M5: =IF(G5=1,31-F5,IF(G5=2,28-F5,IF(G5=3,31-F5,IF(G5=4,30-F5,IF(G5=5,31-F5,IF(G5=6,30-F5,IF(G5=7,31-F5,IF(G5=8,31-F5,IF(G5=9,30-F5,IF(G5=10,31-F5,IF(G5=11,30-F5,IF(G5=12,31-F5))))))))))))+1 -> 31 | N5: =SUM(K5+M5+M6) -> 0
A6: PRORROGA | B6: =PR!B49 -> 2025-01-01 | C6: =PR!D5 -> 2025-12-31 | E6: FI VINCULACIÓ | F6: =DAY(C5) -> 31 | G6: =MONTH(C5) -> 12 | H6: =YEAR(C5) -> 2025 | J6: =IF(AND(G6=1,F6=31),0,IF(AND(G6=2,28=F6),0,IF(AND(G6=3,31=F6),0,IF(AND(G6=4,30=F6),0,IF(AND(G6=5,31=F6),0,IF(AND(G6=6,30=F6),0,IF(AND(G6=7,31=F6),0,IF(AND(G6=8,31=F6),0,IF(AND(G6=9,30=F6),0,IF(AND(G6=10,31=F6),0,IF(AND(G6=11,30=F6),0,IF(AND(G6=12,31=F6),0,-1)))))))))))) -> 0 | M6: =IF(AND(G6=1,F6<>31),F6,IF(AND(G6=2,28<>F6),F6,IF(AND(G6=3,31<>F6),F6,IF(AND(G6=4,30<>F6),F6,IF(AND(G6=5,31<>F6),F6,IF(AND(G6=6,30<>F6),F6,IF(AND(G6=7,31<>F6),F6,IF(AND(G6=8,31<>F6),F6,IF(AND(G6=9,30<>F6),F6,IF(AND(G6=10,31<>F6),F6,IF(AND(G6=11,30<>F6),F6,IF(AND(G6=12,31<>F6),F6,0)))))))))))) -> 0
A7: dies pr distingit
A8: TOTAL VINCULACIÓ | B8: =SUM(#REF!) ->  | C8: =SUM(#REF!) ->  | E8: CÀLCUL DIES PRÒRROGA pr
A9: PRORROGA | B9: =SUM(#REF!) ->  | C9: =SUM(#REF!) ->  | F9: DIA | G9: MES | H9: ANY | J9: dif mesos | K9: dif dies | L9: total mesos | M9: dies | N9: total dies
E10: INICI PRORROGA | F10: =DAY(B6) -> 1 | G10: =MONTH(B6) -> 1 | H10: =YEAR(B6) -> 2025 | J10: =IF(F10>1,-1,0) -> 0 | K10: =IF(F10=1,-M10,0) -> -31 | L10: =IF(H10=H11,G11-G10+1,13-G10+G11+(H11-H10-1)*12)+J10+J11 -> 12 | M10: =IF(G10=1,31-F10,IF(G10=2,28-F10,IF(G10=3,31-F10,IF(G10=4,30-F10,IF(G10=5,31-F10,IF(G10=6,30-F10,IF(G10=7,31-F10,IF(G10=8,31-F10,IF(G10=9,30-F10,IF(G10=10,31-F10,IF(G10=11,30-F10,IF(G10=12,31-F10))))))))))))+1 -> 31 | N10: =SUM(K10+M10+M11) -> 0
E11: FI VINCULACIÓ | F11: =DAY(C5) -> 31 | G11: =MONTH(C5) -> 12 | H11: =YEAR(C5) -> 2025 | J11: =IF(AND(G11=1,F11=31),0,IF(AND(G11=2,28=F11),0,IF(AND(G11=3,31=F11),0,IF(AND(G11=4,30=F11),0,IF(AND(G11=5,31=F11),0,IF(AND(G11=6,30=F11),0,IF(AND(G11=7,31=F11),0,IF(AND(G11=8,31=F11),0,IF(AND(G11=9,30=F11),0,IF(AND(G11=10,31=F11),0,IF(AND(G11=11,30=F11),0,IF(AND(G11=12,31=F11),0,-1)))))))))))) -> 0 | M11: =IF(AND(G11=1,F11<>31),F11,IF(AND(G11=2,28<>F11),F11,IF(AND(G11=3,31<>F11),F11,IF(AND(G11=4,30<>F11),F11,IF(AND(G11=5,31<>F11),F11,IF(AND(G11=6,30<>F11),F11,IF(AND(G11=7,31<>F11),F11,IF(AND(G11=8,31<>F11),F11,IF(AND(G11=9,30<>F11),F11,IF(AND(G11=10,31<>F11),F11,IF(AND(G11=11,30<>F11),F11,IF(AND(G11=12,31<>F11),F11,0)))))))))))) -> 0
E13: CÀLCUL DIES pr DISTINGIT
F14: DIA | G14: MES | H14: ANY | J14: dif mesos | K14: dif dies | L14: total mesos | M14: dies | N14: total dies
E15: INICI | F15: =DAY(B8) ->  | G15: =MONTH(B8) ->  | H15: =YEAR(B8) ->  | J15: =IF(F15>1,-1,0) ->  | K15: =IF(F15=1,-M15,0) ->  | L15: =IF(H15=H16,G16-G15+1,13-G15+G16+(H16-H15-1)*12)+J15+J16 ->  | M15: =IF(G15=1,31-F15,IF(G15=2,28-F15,IF(G15=3,31-F15,IF(G15=4,30-F15,IF(G15=5,31-F15,IF(G15=6,30-F15,IF(G15=7,31-F15,IF(G15=8,31-F15,IF(G15=9,30-F15,IF(G15=10,31-F15,IF(G15=11,30-F15,IF(G15=12,31-F15))))))))))))+1 ->  | N15: =SUM(K15+M15+M16) -> 
E16: FI | F16: =DAY(C8) ->  | G16: =MONTH(C8) ->  | H16: =YEAR(C8) ->  | J16: =IF(AND(G16=1,F16=31),0,IF(AND(G16=2,28=F16),0,IF(AND(G16=3,31=F16),0,IF(AND(G16=4,30=F16),0,IF(AND(G16=5,31=F16),0,IF(AND(G16=6,30=F16),0,IF(AND(G16=7,31=F16),0,IF(AND(G16=8,31=F16),0,IF(AND(G16=9,30=F16),0,IF(AND(G16=10,31=F16),0,IF(AND(G16=11,30=F16),0,IF(AND(G16=12,31=F16),0,-1)))))))))))) ->  | M16: =IF(AND(G16=1,F16<>31),F16,IF(AND(G16=2,28<>F16),F16,IF(AND(G16=3,31<>F16),F16,IF(AND(G16=4,30<>F16),F16,IF(AND(G16=5,31<>F16),F16,IF(AND(G16=6,30<>F16),F16,IF(AND(G16=7,31<>F16),F16,IF(AND(G16=8,31<>F16),F16,IF(AND(G16=9,30<>F16),F16,IF(AND(G16=10,31<>F16),F16,IF(AND(G16=11,30<>F16),F16,IF(AND(G16=12,31<>F16),F16,0)))))))))))) -> 
E18: CÀLCUL DIES PRÒRROGA pr DISTINGIT
F19: DIA | G19: MES | H19: ANY | J19: dif mesos | K19: dif dies | L19: total mesos | M19: dies | N19: total dies
E20: INICI | F20: =DAY(B9) ->  | G20: =MONTH(B9) ->  | H20: =YEAR(B9) ->  | J20: =IF(F20>1,-1,0) ->  | K20: =IF(F20=1,-M20,0) ->  | L20: =IF(H20=H21,G21-G20+1,13-G20+G21+(H21-H20-1)*12)+J20+J21 ->  | M20: =IF(G20=1,31-F20,IF(G20=2,28-F20,IF(G20=3,31-F20,IF(G20=4,30-F20,IF(G20=5,31-F20,IF(G20=6,30-F20,IF(G20=7,31-F20,IF(G20=8,31-F20,IF(G20=9,30-F20,IF(G20=10,31-F20,IF(G20=11,30-F20,IF(G20=12,31-F20))))))))))))+1 ->  | N20: =SUM(K20+M20+M21) -> 
E21: FI | F21: =DAY(C9) ->  | G21: =MONTH(C9) ->  | H21: =YEAR(C9) ->  | J21: =IF(AND(G21=1,F21=31),0,IF(AND(G21=2,28=F21),0,IF(AND(G21=3,31=F21),0,IF(AND(G21=4,30=F21),0,IF(AND(G21=5,31=F21),0,IF(AND(G21=6,30=F21),0,IF(AND(G21=7,31=F21),0,IF(AND(G21=8,31=F21),0,IF(AND(G21=9,30=F21),0,IF(AND(G21=10,31=F21),0,IF(AND(G21=11,30=F21),0,IF(AND(G21=12,31=F21),0,-1)))))))))))) ->  | M21: =IF(AND(G21=1,F21<>31),F21,IF(AND(G21=2,28<>F21),F21,IF(AND(G21=3,31<>F21),F21,IF(AND(G21=4,30<>F21),F21,IF(AND(G21=5,31<>F21),F21,IF(AND(G21=6,30<>F21),F21,IF(AND(G21=7,31<>F21),F21,IF(AND(G21=8,31<>F21),F21,IF(AND(G21=9,30<>F21),F21,IF(AND(G21=10,31<>F21),F21,IF(AND(G21=11,30<>F21),F21,IF(AND(G21=12,31<>F21),F21,0)))))))))))) -> 

Sheet CONTRACTES (hidden)
A3: CONTRCTES PR 2022
A4: CODI | B4: DURADA | C4: TIPUS | D4: DEDICACIÓ | E4: INDEMNITZACIÓ | F4: RETRIBUCIONS | G4: QUOTA PATRONAL
A5: 100 | B5: INDEFINIT | C5: D’ACTIVITATS CIENTIFICOTÈCNIQUES (PROJECTES CTT) | D5: TEMPS COMPLET | E5: 20 (*) | F5: 1 | G5: 0.314
A6: 200 | B6: INDEFINIT | C6: D’ACTIVITATS CIENTIFICOTÈCNIQUES (PROJECTES CTT) | D6: TEMPS PARCIAL | E6: 20 (*) | F6: 1 | G6: 0.314
A7: 406 | B7: TEMPORAL | C7: VINCULAT A PROGRAMES FINANÇATS PER FONS EUROPEUS | D7: TEMPS COMPLET | E7: 12 | F7: 1 | G7: 0.326 | H7: No SOPHIA
A8: 506 | B8: TEMPORAL | C8: VINCULAT A PROGRAMES FINANÇATS PER FONS EUROPEUS | D8: TEMPS PARCIAL | E8: 12 | F8: 1 | G8: 0.326 | H8: No SOPHIA
